Cogmind - Beta 13 @@@ ROGUE MODE // 2024.04.11 @ 19:32:58 Player: LEWiKK Result: Destroyed by G-47 Trooper with Particle Gun Performance ------------- Evolutions (2) 1000 Regions Visited (4) 800 Robots Destroyed (69) 345 Value Destroyed (2245) 2245 Prototype IDs (13) 260 Alien Tech Used (0) 0 Bonus (461) 461 TOTAL SCORE: 5111 Bonus ------- High Alert Combat Kills 261 Entered Garrisons 200 Cogmind --------- Core Integrity 0/550 Matter 300/300 Energy 100/100 System Corruption 8% Temperature Cool (9) Movement Core (200) Ox3 Location -8/Garrison Parts ------- > --- POWER (1) -------- (None) > --- PROPULSION (4) --- (None) > --- UTILITY (4) ------ Medium Storage Unit Targeting Computer Armor Integrity Analyzer > --- WEAPON (2) ------- (None) > --- INVENTORY (10) --- Light Ion Engine Light Nuclear Core Light Angular Momentum Engine Hacking Suite Datajack Peak State ------------ > --- POWER ------------ Heavy Ion Engine > --- PROPULSION ------- Aluminum Leg Carbon-fiber Leg Carbon-fiber Leg Carbon-fiber Leg > --- UTILITY ---------- Medium Storage Unit Targeting Computer Armor Integrity Analyzer Shield Generator > --- WEAPON ----------- Minigun Gauss Rifle > --- INVENTORY -------- Light Ion Engine Light Nuclear Core Hacking Suite Particle Gun Light Assault Rifle Datajack [Rating: 29] Favorites ----------- Power Heavy Ion Engine Engine Heavy Ion Engine Propulsion Aluminum Leg Treads Light Treads Leg Aluminum Leg Utility Shield Generator Device Shield Generator Storage Small Storage Unit Processor Armor Integrity Analyzer Protection Light Armor Plating Weapon Assault Rifle Energy Gun Improved EM Shotgun Ballistic Gun Assault Rifle Special Melee Weapon Datajack Build | -11 -10 -9 -8 -8 ------- Run | Yrd Mat Mat Mat Gar Slots Evolved 4 | . . 2 2 . Power . | . . . . . Propulsion 2 | . . 1 1 . Utility 2 | . . 1 1 . Weapon . | . . . . . Parts Attached 57 | 8 . 20 4 25 Power 4 | 1 . 2 . 1 Engine 4 | 1 . 2 . 1 Core . | . . . . . Reactor . | . . . . . Propulsion 21 | 4 . 6 1 10 Treads 2 | 2 . . . . Leg 19 | 2 . 6 1 10 Wheel . | . . . . . Hover . | . . . . . Flight . | . . . . . Utility 13 | 1 . 6 2 4 Device 3 | . . 2 . 1 Storage 2 | 1 . 1 . . Processor 2 | . . . . 2 Hackware . | . . . . . Protection 6 | . . 3 2 1 Artifact . | . . . . . Weapon 19 | 2 . 6 1 10 Energy Gun 8 | . . 4 1 3 Energy Cannon . | . . . . . Ballistic Gun 10 | 2 . 2 . 6 Ballistic Cannon . | . . . . . Launcher . | . . . . . Special Weapon . | . . . . . Impact Weapon . | . . . . . Slashing Weapon . | . . . . . Piercing Weapon . | . . . . . Special Melee Weapon 1 | . . . . 1 Unidentified Prototypes 1 | . . 1 . . Parts Lost 42 | . . 13 2 27 Power 3 | . . 1 . 2 Propulsion 17 | . . 4 . 13 Utility 9 | . . 3 1 5 Weapon 13 | . . 5 1 7 Highest Loss Streak 16 | . . 3 1 16 To Critical Strikes . | . . . . . Average Slot Usage (%) 91 | . 85 92 100 88 Engine 10 | . 14 11 9 8 Leg 32 | . 28 31 36 32 Device 9 | . . 13 10 7 Storage 10 | . 14 11 9 9 Processor 2 | . . . . 7 Protection 5 | . . 3 16 6 Energy Gun 6 | . . 10 9 2 Ballistic Gun 13 | . 28 11 9 14 Naked Turns . | . . . . . Heaviest Build 32 | 12 12 27 31 32 Greatest Support 55 | 40 20 30 40 55 Greatest Overweight (x) 3 | . . 1 . 3 Average Overweight (x) . | . . . . . Largest Inventory Capacity 10 | 8 8 10 10 10 Average Capacity 8 | 6 8 8 10 10 Most Carried 10 | 7 7 10 10 10 Average Carried 7 | 4 5 7 9 8 Final Capacity 10 | 8 8 10 10 10 Final Carried 10 | 4 7 10 10 5 Class Distribution -------------------- 69% | Mutant 30% | Scavenger-Mutant Dominant Class ---------------- Mutant | -10/Materials Mutant | -9/Materials Scavenger-Mutant | -8/Materials Scavenger-Mutant | -8/Garrison Resources | -11 -10 -9 -8 -8 ----------- Run | Yrd Mat Mat Mat Gar Matter Collected 1504 | 196 132 477 99 600 Remotely . | . . . . . Salvage Created 2880 | . 132 1464 367 917 Parts 174 | . 3 100 24 47 Haulers Intercepted 2 | . . 2 . . Recyclers Shooed . | . . . . . Parts Field Recycled . | . . . . . Retrieved Matter . | . . . . . Parts Self-Destructed . | . . . . . Prevented . | . . . . . Kills | -11 -10 -9 -8 -8 ------- Run | Yrd Mat Mat Mat Gar Combat Hostiles Destroyed 60 | . 3 29 9 19 Guns 60 | . 3 29 9 19 Classes Destroyed 11 | . 1 8 . 2 Builder 2 | . . 2 . . Hauler 2 | . . 2 . . Recycler 1 | . . 1 . . Operator 2 | . . 2 . . Watcher 2 | . . 1 . 1 Swarmer 14 | . . 7 4 3 Grunt 32 | . 3 14 3 12 Duelist 1 | . . 1 . . Sentry 10 | . . 7 2 1 Hunter 2 | . . . . 2 Programmer 1 | . . . . 1 Best Kill Streak 6 | . 1 6 4 3 Combat Bots Only 6 | . 1 6 4 3 Max Kills in Single Turn 2 | . 1 2 1 1 Gunslinging . | . . . . . Exploded . | . . . . . Melee . | . . . . . Uniques/NPCs Destroyed . | . . . . . Combat | -11 -10 -9 -8 -8 -------- Run | Yrd Mat Mat Mat Gar Hostile Shots Fired 502 | . 20 158 59 265 Missed 133 | . 4 39 22 68 Damage Taken 4619 | . 176 1464 308 2671 Core 783 | . 52 166 22 543 Absorbed by Shields 769 | . . 222 128 419 Regen/Repaired (Parts) 73 | . . 73 . . Core Remaining (%) 79 | 100 79 58 . . Volleys Fired 226 | . 15 95 23 93 Largest 2 | . 2 2 2 2 Hottest 68 | . 40 65 65 68 Shots Fired 416 | . 30 178 45 163 Gun 416 | . 30 178 45 163 Cannon . | . . . . . Launcher . | . . . . . Special . | . . . . . Kinetic 291 | . 30 94 23 144 Thermal 11 | . . . . 11 Explosive . | . . . . . Electromagnetic 114 | . . 84 22 8 Robot Hit Streak 28 | . 9 28 9 11 Robot Miss Streak 8 | . 3 6 8 5 Penetration Max . | . . . . . Secondary Targets 5 | . . 2 1 2 Max Gunslinging Chain 1 | . . 1 1 1 Shots Hit Robots 290 | . 19 126 33 112 Core Hits 140 | . 7 69 17 47 Critical Kills . | . . . . . Critical Parts Destroyed . | . . . . . Critical Strikes . | . . . . . Melee Attacks 2 | . . . . 2 Impact . | . . . . . Slashing . | . . . . . Piercing . | . . . . . Sneak Attacks . | . . . . . Combat Hostiles . | . . . . . Follow-up Attacks . | . . . . . Damage Inflicted 4448 | . 239 1781 535 1893 Guns 4264 | . 239 1728 478 1819 Cannons . | . . . . . Explosions 171 | . . 53 57 61 Melee . | . . . . . Ramming 13 | . . . . 13 Kinetic 2780 | . 239 786 207 1548 Thermal 315 | . . 53 57 205 Explosive . | . . . . . Electromagnetic 1340 | . . 942 271 127 Impact . | . . . . . Slashing . | . . . . . Piercing . | . . . . . Highest Corruption 8 | . . . . 8 Average Corruption 5 | . . . . 5 Corruption Purged . | . . . . . Corruption Blocked . | . . . . . Effects 3 | . . . . 3 Message Errors 1 | . . . . 1 Matter Fused 1 | . . . . 1 Alerts 1 | . . . . 1 Overload Shots . | . . . . . Overflow Damage 56 | . . 30 . 26 Projectiles . | . . . . . Explosions 56 | . . 30 . 26 Melee . | . . . . . Knockbacks 1 | . . . . 1 Impact 1 | . . . . 1 Kinetic . | . . . . . Secondary . | . . . . . Self-Inflicted Damage 151 | . . 83 . 68 Shots 3 | . . 2 . 1 Rammed . | . . . . . Targets Rammed 8 | . . 1 . 7 Kicked 8 | . . 1 . 7 Crushed . | . . . . . Highest Temperature 223 | . 2 108 74 223 Average Temperature 32 | . 2 27 24 43 Received Heat Transfer 1399 | . 99 463 122 715 Siege Activations . | . . . . . Robots Corrupted . | . . . . . Combat Hostiles . | . . . . . Parts Fried 1 | . . 1 . . Impact Corruptions . | . . . . . Robots Melted . | . . . . . Combat Hostiles . | . . . . . Parts Melted . | . . . . . Heat Transferred 533 | . . 100 50 383 Parts Sabotaged . | . . . . . Parts Stolen . | . . . . . Parts Stripped . | . . . . . Power Chain Reactions 4 | . . 2 1 1 Alert | -11 -10 -9 -8 -8 ------- Run | Yrd Mat Mat Mat Gar Peak Influence 782 | . 123 494 534 782 Initial 349 | . . 51 208 349 Average 335 | . 54 290 375 526 Maximum Alert Level 3 | . . 2 2 3 Low Security (%) 21 | 100 100 19 . . Level 1 47 | . . 62 76 26 Level 2 26 | . . 17 23 57 Level 3 4 | . . . . 16 Level 4 . | . . . . . Level 5 . | . . . . . High Security . | . . . . . Max Security . | . . . . . Squads Dispatched 6 | . 1 4 1 . Investigation 3 | . . 2 1 . Extermination . | . . . . . Reinforcement 3 | . 1 2 . . Assault . | . . . . . Garrison . | . . . . . Intercept . | . . . . . Searches Triggered . | . . . . . Construction Impeded . | . . . . . Haulers Reinforced . | . . . . . Active Scanning Responses . | . . . . . Cargo Convoy Interrupts . | . . . . . Stealth | -11 -10 -9 -8 -8 --------- Run | Yrd Mat Mat Mat Gar Distress Signals 4 | . 1 2 . 1 Communications Jammed . | . . . . . Distress Signals . | . . . . . Times Spotted 92 | . 8 44 12 28 Peak Tracking Total 7 | . 2 5 5 7 Tactical Retreats 8 | . . 3 2 3 Traps | -11 -10 -9 -8 -8 ------- Run | Yrd Mat Mat Mat Gar Traps Triggered 2 | . . . . 2 Indirectly . | . . . . . Trap Hack Attempts . | . . . . . Triggered . | . . . . . Disarmed . | . . . . . Reprogrammed . | . . . . . Reused . | . . . . . Traps Extracted . | . . . . . Installed . | . . . . . Triggered . | . . . . . Machines | -11 -10 -9 -8 -8 ---------- Run | Yrd Mat Mat Mat Gar Machines Disabled 3 | . . . 3 . Max in Single Turn 2 | . . . 2 . Machines Repaired . | . . . . . Machines Dismantled . | . . . . . Machines Sabotaged . | . . . . . Overloaded Fab Kills . | . . . . . Hacking | -11 -10 -9 -8 -8 --------- Run | Yrd Mat Mat Mat Gar Machines Accessed 17 | . 4 9 3 1 Terminals 15 | . 4 8 2 1 Fabricators . | . . . . . Repair Stations 1 | . . 1 . . Recycling Units . | . . . . . Scanalyzers . | . . . . . Garrison Access 1 | . . . 1 . Total Hacks 67 | . 14 41 8 4 Successful 38 | . 7 25 4 2 Failed 28 | . 7 15 4 2 Catastrophic 7 | . 1 5 . 1 Database Lockouts 1 | . . 1 . . Manual 39 | . 7 24 5 3 Terminals 62 | . 14 38 6 4 Fabricators . | . . . . . Repair Stations 3 | . . 3 . . Recycling Units . | . . . . . Scanalyzers . | . . . . . Garrison Access 2 | . . . 2 . Terminal Hacks 22 | . 5 15 1 1 Robot Analysis 2 | . . 2 . . Prototype ID Bank 10 | . 2 8 . . Emergency Access Points 4 | . . 2 1 1 Locate Traps 3 | . 1 2 . . Registered Components 2 | . 1 1 . . Zone Layout 1 | . 1 . . . Fabricator Hacks . | . . . . . Repair Station Hacks 2 | . . 2 . . Scan Component 1 | . . 1 . . Repair 1 | . . 1 . . Recycling Unit Hacks . | . . . . . Scanalyzer . | . . . . . Garrison Access Hacks 1 | . . . 1 . Unlock Access 1 | . . . 1 . Unauthorized Hacks 13 | . 2 8 2 1 Terminals 13 | . 2 8 2 1 Botnet 13 | . 2 8 2 1 Fabricators . | . . . . . Repair Stations . | . . . . . Recycling Units . | . . . . . Scanalyzers . | . . . . . Garrison Access . | . . . . . Data Cores Recovered . | . . . . . Used . | . . . . . Hacking Detections 16 | . 4 8 3 1 Full Trace Events 5 | . 1 2 1 1 Feedback Events . | . . . . . Feedback Blocked . | . . . . . Robot Schematics Acquired . | . . . . . Robots Built . | . . . . . Authchips . | . . . . . Time . | . . . . . Total Robot Build Rating . | . . . . . Part Schematics Acquired . | . . . . . Parts Built . | . . . . . Authchips . | . . . . . Time . | . . . . . Total Part Build Rating . | . . . . . Parts Repaired 1 | . . 1 . . Time 13 | . . 13 . . Parts Recycled . | . . . . . Recycled Matter . | . . . . . Retrieved Matter . | . . . . . Retrieved Components . | . . . . . Parts Scanalyzed . | . . . . . Part Schematics Acquired . | . . . . . Parts Damaged . | . . . . . Bothacking | -11 -10 -9 -8 -8 ------------ Run | Yrd Mat Mat Mat Gar Used RIF Installer . | . . . . . Robots Hacked . | . . . . . Non-combat . | . . . . . Combat . | . . . . . Robot Hacks Applied . | . . . . . Relay Couplers Released . | . . . . . Fabnet Peak Effective % . | . . . . . Robots Rewired . | . . . . . Allies Hacked . | . . . . . Hacks Repelled . | . . . . . Allies | -11 -10 -9 -8 -8 -------- Run | Yrd Mat Mat Mat Gar Total Allies . | . . . . . Largest Group . | . . . . . Highest-Rated Group . | . . . . . Highest-Rated Ally . | . . . . . Total Orders . | . . . . . Ally Attacks . | . . . . . Total Damage . | . . . . . Kills . | . . . . . Allies Corrupted . | . . . . . Allies Melted . | . . . . . Intel | -11 -10 -9 -8 -8 ------- Run | Yrd Mat Mat Mat Gar Robot Analysis Total 2 | . . 2 . . Derelict Logs Recovered . | . . . . . Drone Launches . | . . . . . Drone Recoveries . | . . . . . Exploration | -11 -10 -9 -8 -8 ------------- Run | Yrd Mat Mat Mat Gar Turns Passed 3094 | 64 299 1531 372 828 Spaces Moved 1594 | 37 194 765 223 375 Core 15 | 4 . . . 11 Treads 10 | 10 . . . . Legs 1569 | 23 194 765 223 364 Wheels . | . . . . . Hover . | . . . . . Flight . | . . . . . Fastest Speed 50 | 50 120 120 120 120 Average Speed 122 | 123 120 123 120 122 Slowest Speed 200 | 160 120 190 120 200 Overloaded Moves . | . . . . . Propulsion Burnouts . | . . . . . Robots Hopped . | . . . . . Cave-ins Triggered . | . . . . . Exploration Rate (%) 32 | 3 38 61 21 41 Regions Visited 4 Branch Regions . Pre-discovered Areas . | . . . . . Known Exits Taken 1 | . . . 1 . Unknown Exits Taken 3 | 1 1 1 . . Scrap Searched . | . . . . . Spaces Dug . | . . . . . Terrain Destroyed 14 | . . 7 2 5 Melee . | . . . . . Projectile . | . . . . . AOE 14 | . . 7 2 5 Terrain Rammed . | . . . . . Walls Destroyed . | . . . . . Machines Disabled . | . . . . . Actions | -11 -10 -9 -8 -8 --------- Run | Yrd Mat Mat Mat Gar Total 2346 | 56 230 1189 282 589 Wait 365 | . 19 253 26 67 Move 1589 | 36 193 764 223 373 Hop . | . . . . . Pick Up 74 | 10 3 38 5 18 Fast Attach . | . . . . . Attach 50 | 8 . 19 4 19 Detach 2 | 2 . . . . Swap 7 | . . 1 . 6 Drop 23 | . . 18 1 4 Fire 226 | . 15 95 23 93 Melee 2 | . . . . 2 Ram . | . . . . . Kick 8 | . . 1 . 7 Crush . | . . . . . Escape Stasis . | . . . . . Rewire . | . . . . . Trap . | . . . . . Miscellaneous . | . . . . . Route ------- -11/Scrapyard -10/Materials -9/Materials (discovered 5 exits: *Mat x2 / [*Min x2] / [*Sto]) -8/Materials -8/Garrison (discovered 1 exit: [*Mat]) History --------- Turn | Location | Event 22 | -11/Scrapyard | Discovered new exit (range 16) 65 | -11/Scrapyard | Entered Materials 313 | -10/Materials | Build established: Mutant 326 | -10/Materials | Discovered new exit (range 13) 364 | -10/Materials | Entered another Materials area 364 | -9/Materials | Evolved 2 slots: Propulsion x1, Utility x1 501 | -9/Materials | Discovered new exit (range 6) 730 | -9/Materials | Discovered new exit (range 14) 831 | -9/Materials | Discovered new exit (range 15) 1079 | -9/Materials | Central database locked down 1125 | -9/Materials | Lost 3 parts (1n2w) 1387 | -9/Materials | Repaired Aluminum Leg 1670 | -9/Materials | Discovered new exit (range 14) 1679 | -9/Materials | Discovered new exit (range 12) 1895 | -9/Materials | Entered another Materials area 1895 | -8/Materials | Evolved 2 slots: Propulsion x1, Utility x1 2090 | -8/Materials | Build established: Scavenger-Mutant 2267 | -8/Materials | Identified exit to Garrison 2267 | -8/Materials | Entered Garrison 2482 | -8/Garrison | Triggered checkpoint 2485 | -8/Garrison | Lost 5 parts (2n1u2w) 2570 | -8/Garrison | Lost 3 parts (1n2u) 2606 | -8/Garrison | Triggered checkpoint 2666 | -8/Garrison | Triggered checkpoint 2913 | -8/Garrison | Discovered new exit (range 13) 2938 | -8/Garrison | Triggered checkpoint 3016 | -8/Garrison | Attempted to access garrison exit controls, blocked by remote lockdown 3065 | -8/Garrison | Core integrity fell below 50% 3080 | -8/Garrison | Core integrity fell below 20% 3095 | -8/Garrison | Destroyed by G-47 Trooper with Particle Gun Last Messages --------------- Carbon-fiber Leg destroyed. Kicked P-60 Hacker out of the way. Critical hit (Burn: +37). Kicked P-60 Hacker. Kicked P-60 Hacker out of the way. Kicked P-60 Hacker. Aluminum Leg destroyed. Kicked P-60 Hacker. Kicked P-60 Hacker out of the way. P-60 Hacker knocked back. Aluminum Leg destroyed. Hvy. Ion Engine destroyed. G-47 Trooper heat short circuits Aluminum Leg. P-60 Hacker resets G-47 Trooper, system corruption cleaned. G-47 Trooper heat spikes uncontrollably. G-47 Trooper overheating. P-60 Hacker heat short circuits Gravmag System. Triggered Alarm Trap. An alarm sounds. Map ----- +----------------------------------------------------+ | ???????#" #??????????????+ +??????# #?????????? | | ???????#" #??????????????# #??????# #??####???? | | ???????#"# #??????????????# #??????# #? #???? | | ???????### #?##+##????????#=!#?????## ## ## | | ?????????#=#?# #????????#%*##+#### | | ?????????# ### %*##########[[ ! | | ?????????#= *= [% | | ?????????########################### ## #?? | | ?????????????????????????????????### ## ## | | ?????????????????????????????????# ^ | | ?????????????????????????????????# | | ?????????????????????????????????# | | ?????????????????????????????????+ | | ????????????????????#????????????### ## ## | | ???????????????????? ??????????????# ## ## | | ???????????????????# #??###????????# | | ???????????????????# +?? ????????+ | | ???????????????????# #??# #????????# | | ???????????????????# #??# #????????## ##""""##### | | ???????????????????# #??# #?????????# #?????????? | | ???????????????????# #??# ##????????# #?????????? | | ???????????????????# #??# #????????# #?????????? | | ?????????# #######!####+#?????????+ #?????????? | | ?????????+ !%"% #?????????# #?????????? | | ????????????####### * ###%#?????????# #?????????? | | ??????????????????# !#?#@#?????????# #?????????? | | ??????????????????##+##?# #?????????# #?????????? | | ??????????+?+??????# #??#g#####+##### #?????????? | | ?????????/???+?????# #??# #?????????? | | ???????????????????# ??+ #?????????? | | ??????????+?+??????###??## ###+########?????????? | | ?????????????????????????# #????????????????????? | | ?????????????????????????#pY#????????????????????? | | ?????????????????????????# #????????????????????? | | ?????????????????????????# +????????????????????? | | ?????????????????????????# #????????????????????? | | ?????????????????????????# %#????????????????????? | | ?????????????????????????#[%#????????????????????? | | ???????????????????????###%=#????????????????????? | | ???????????????????????# =!#????????????????????? | | ???????????????????????# < #????????????????????? | | ???????????????????????# #????????????????????? | | ???????????????????????######????????????????????? | | ?????????????????????????????????????????????????? | | ?????????????????????????????????????????????????? | | ?????????????????????????????????????????????????? | | ?????????????????????????????????????????????????? | | ?????????????????????????????????????????????????? | | ?????????????????????????????????????????????????? | | ?????????????????????????????????????????????????? | +----------------------------------------------------+ Best States ------------- Heat Dissipation 31 Energy Generation 14 Energy Capacity 280 Matter Stores 300 Matter Capacity 300 Sight Range 16 Terrain Scan Density 10 Armor Coverage 300 Evasion (%) 55 Targeting Accuracy 5 Armor Integrity Analysis 30 Recoil Reduction 2 Item Schematics ----------------- None Robot Schematics ------------------ None Fabricated ------------ Nothing Alien Tech Used ----------------- None Achievements -------------- None Challenges ------------ None Game ------ Seed MediumGuidedProtomatter Manual? 0 Play Time 00:37:06 Cumulative 25.7 hours Start 2024.04.11 @ 18:56:35 End 2024.04.11 @ 19:32:58 Sessions 1 Manual Loads 0 Difficulty Rogue Special Mode None Game No. 22 Rogue 22 Adventurer 0 Explorer 0 Win Type - Total 0 Types 0/0/0/0/0/0/0/0/0 Lore% 29 Gallery% 20 Achievement% 25 Wizard Run 0 Options --------- Layout 1 ASCII 0 Keyboard 0 Movement Mouse Keybinds 0 Fullscreen 2 Font 20/SmallcapsGlow Map View 54x42 Zoom Use 0% Tactical HUD 0 Map Filters NONE Filters NONE Steam 1 RUN: 1128da4a-d636-4f4f-b399-1b3cd608b971